[Event "Early-Titled-Tuesday-Blitz-January-23-2024"]
[Site "Chess.com"]
[Date "2024.01.23"]
[Round "8"]
[White "DarkAlekhine"]
[Black "Ural_bogatyr"]
[Result "1-0"]
[WhiteElo "2704"]
[BlackElo "2530"]
[TimeControl "180+1"]
[EndTime "9:27:16 PST"]
[Termination "DarkAlekhine won by resignation"]

1. e4 {[%clk 0:01:28.4]} 1... e5 {[%clk 0:02:59]} 2. Nf3 {[%clk 0:01:27.9]} 2...
Nc6 {[%clk 0:02:59.1]} 3. Bc4 {[%clk 0:01:28.4]} 3... Bc5 {[%clk 0:02:58.4]} 4.
d3 {[%clk 0:01:28.7]} 4... Nf6 {[%clk 0:02:58]} 5. c3 {[%clk 0:01:27.3]} 5... a6
{[%clk 0:02:58.1]} 6. Bb3 {[%clk 0:01:26.9]} 6... Ba7 {[%clk 0:02:56.9]} 7. h3
{[%clk 0:01:26.6]} 7... d6 {[%clk 0:02:51.4]} 8. Bc2 {[%clk 0:01:24.3]} 8... O-O
{[%clk 0:02:49.5]} 9. O-O {[%clk 0:01:22.2]} 9... Ne7 {[%clk 0:02:44.1]} 10. d4
{[%clk 0:01:21]} 10... Ng6 {[%clk 0:02:43.9]} 11. Re1 {[%clk 0:01:20.1]} 11...
h6 {[%clk 0:02:41.7]} 12. Nbd2 {[%clk 0:01:19.4]} 12... c6 {[%clk 0:02:41.2]}
13. Nf1 {[%clk 0:01:19.9]} 13... Re8 {[%clk 0:02:33]} 14. Ng3 {[%clk 0:01:19.4]}
14... Be6 {[%clk 0:02:27.5]} 15. Be3 {[%clk 0:01:14.6]} 15... a5 {[%clk
0:02:22.4]} 16. Qd2 {[%clk 0:01:13.3]} 16... Kh7 {[%clk 0:02:07.9]} 17. Rad1
{[%clk 0:01:07.8]} 17... Qc7 {[%clk 0:02:06]} 18. Nf5 {[%clk 0:00:58.5]} 18...
Ng8 {[%clk 0:02:02.7]} 19. g3 {[%clk 0:00:15.9]} 19... Rad8 {[%clk 0:02:01.4]}
20. h4 {[%clk 0:00:14.5]} 20... f6 {[%clk 0:01:59.8]} 21. h5 {[%clk 0:00:14.4]}
21... N6e7 {[%clk 0:01:59.8]} 22. N3h4 {[%clk 0:00:13.2]} 22... Nxf5 {[%clk
0:01:58]} 23. exf5 {[%clk 0:00:13.5]} 23... Bf7 {[%clk 0:01:57.8]} 24. Qe2
{[%clk 0:00:13.2]} 24... e4 {[%clk 0:01:54.2]} 25. Qg4 {[%clk 0:00:11.6]} 25...
d5 {[%clk 0:01:54.1]} 26. Bf4 {[%clk 0:00:12]} 26... Qd7 {[%clk 0:01:52.6]} 27.
Kh2 {[%clk 0:00:11.7]} 27... Bb8 {[%clk 0:01:51.9]} 28. Bxb8 {[%clk 0:00:09.8]}
28... Rxb8 {[%clk 0:01:52.8]} 29. f3 {[%clk 0:00:09.8]} 29... exf3 {[%clk
0:01:41.9]} 30. Nxf3 {[%clk 0:00:09.9]} 30... b5 {[%clk 0:01:37.5]} 31. Ne5
{[%clk 0:00:09.5]} 31... Qc7 {[%clk 0:01:34.4]} 32. Qg6+ {[%clk 0:00:09.5]}
32... Bxg6 {[%clk 0:01:29.9]} 33. fxg6+ {[%clk 0:00:09.7]} 33... Kh8 {[%clk
0:01:29.6]} 34. Nf7+ {[%clk 0:00:10.4]} 34... Qxf7 {[%clk 0:01:29.6]} 35. gxf7
{[%clk 0:00:11.3]} 35... Rxe1 {[%clk 0:01:26.4]} 36. fxg8=Q+ {[%clk 0:00:11.3]}
36... Kxg8 {[%clk 0:01:27.3]} 37. Rxe1 {[%clk 0:00:11.9]} 37... Kf8 {[%clk
0:01:26.3]} 38. Bg6 {[%clk 0:00:11.8]} 38... a4 {[%clk 0:01:23.5]} 39. a3 {[%clk
0:00:11.6]} 39... Rc8 {[%clk 0:01:19.6]} 40. g4 {[%clk 0:00:11.2]} 40... Rd8
{[%clk 0:01:18.1]} 41. Kg3 {[%clk 0:00:11.4]} 41... Rc8 {[%clk 0:01:18.2]} 42.
Kf4 {[%clk 0:00:11.7]} 42... Rd8 {[%clk 0:01:17.8]} 43. Re6 {[%clk 0:00:11.9]}
43... Rc8 {[%clk 0:01:17.7]} 44. Kf5 {[%clk 0:00:12.2]} 44... c5 {[%clk
0:01:16.9]} 45. dxc5 {[%clk 0:00:11.9]} 1-0

[Event "Early-Titled-Tuesday-Blitz-January-23-2024"]
[Site "Chess.com"]
[Date "2024.01.23"]
[Round "8"]
[White "Sam_ChessMood"]
[Black "Denis_Makhnyov"]
[Result "1-0"]
[WhiteElo "2937"]
[BlackElo "3017"]
[TimeControl "180+1"]
[EndTime "9:27:18 PST"]
[Termination "Sam_ChessMood won on time"]

1. d4 {[%clk 0:03:00]} 1... d5 {[%clk 0:02:25.9]} 2. c4 {[%clk 0:02:59.9]} 2...
e6 {[%clk 0:02:26.6]} 3. Nc3 {[%clk 0:02:59.9]} 3... c6 {[%clk 0:02:27.2]} 4.
Nf3 {[%clk 0:02:54.5]} 4... dxc4 {[%clk 0:02:25.7]} 5. g3 {[%clk 0:02:53.8]}
5... b5 {[%clk 0:02:25.2]} 6. Bg2 {[%clk 0:02:54]} 6... Bb7 {[%clk 0:02:25.6]}
7. O-O {[%clk 0:02:54.2]} 7... Nd7 {[%clk 0:02:25.7]} 8. e4 {[%clk 0:02:54.3]}
8... Ngf6 {[%clk 0:02:26.2]} 9. e5 {[%clk 0:02:49.5]} 9... Nd5 {[%clk
0:02:25.8]} 10. Ng5 {[%clk 0:02:46.6]} 10... N7b6 {[%clk 0:02:04.9]} 11. Qh5
{[%clk 0:02:35.3]} 11... Qd7 {[%clk 0:02:03.9]} 12. Nce4 {[%clk 0:02:21]} 12...
h6 {[%clk 0:01:56.5]} 13. Nc5 {[%clk 0:02:02.3]} 13... g6 {[%clk 0:01:28.9]} 14.
Qh3 {[%clk 0:01:45.8]} 14... Qc7 {[%clk 0:00:52.9]} 15. Nge4 {[%clk 0:01:28.4]}
15... O-O-O {[%clk 0:00:45.4]} 16. a4 {[%clk 0:01:27.9]} 16... Kb8 {[%clk
0:00:41.2]} 17. Bd2 {[%clk 0:01:26.1]} 17... Nd7 {[%clk 0:00:37.9]} 18. Rfc1
{[%clk 0:01:12.2]} 18... Be7 {[%clk 0:00:18]} 19. axb5 {[%clk 0:00:44.8]} 19...
cxb5 {[%clk 0:00:18.1]} 20. Ba5 {[%clk 0:00:45]} 20... N5b6 {[%clk 0:00:16.8]}
21. Nxb7 {[%clk 0:00:41.6]} 21... Qxb7 {[%clk 0:00:12.4]} 22. Nd6 {[%clk
0:00:36]} 22... Qa6 {[%clk 0:00:04]} 23. Nxf7 {[%clk 0:00:34.2]} 23... Rhf8
{[%clk 0:00:02.8]} 24. Qxe6 {[%clk 0:00:34]} 24... Nc8 {[%clk 0:00:01.4]} 25.
Qxa6 {[%clk 0:00:31.3]} 1-0

[Event "Early-Titled-Tuesday-Blitz-January-23-2024"]
[Site "Chess.com"]
[Date "2024.01.23"]
[Round "8"]
[White "secretsuperstar7"]
[Black "Martial2008"]
[Result "0-1"]
[WhiteElo "2507"]
[BlackElo "2662"]
[TimeControl "180+1"]
[EndTime "9:27:18 PST"]
[Termination "Martial2008 won by checkmate"]

1. c4 {[%clk 0:02:57]} 1... Nf6 {[%clk 0:02:56.1]} 2. Nc3 {[%clk 0:02:56.7]}
2... e5 {[%clk 0:02:52.9]} 3. d3 {[%clk 0:02:55.7]} 3... Bb4 {[%clk 0:02:51.4]}
4. g3 {[%clk 0:02:49.6]} 4... O-O {[%clk 0:02:47.7]} 5. Bg2 {[%clk 0:02:49.1]}
5... Bxc3+ {[%clk 0:02:47]} 6. bxc3 {[%clk 0:02:49.1]} 6... d6 {[%clk
0:02:47.1]} 7. Nf3 {[%clk 0:02:49.4]} 7... Nc6 {[%clk 0:02:45.2]} 8. O-O {[%clk
0:02:49.1]} 8... Bf5 {[%clk 0:02:42.4]} 9. a4 {[%clk 0:02:48.3]} 9... Qd7 {[%clk
0:02:41]} 10. Rb1 {[%clk 0:02:46.5]} 10... b6 {[%clk 0:02:40.6]} 11. Re1 {[%clk
0:02:19]} 11... Bh3 {[%clk 0:02:39.2]} 12. Bh1 {[%clk 0:02:18.5]} 12... Rad8
{[%clk 0:02:37.5]} 13. Bg5 {[%clk 0:02:12.7]} 13... Qf5 {[%clk 0:02:32.2]} 14.
e4 {[%clk 0:01:56.4]} 14... Qg6 {[%clk 0:02:30.1]} 15. d4 {[%clk 0:01:48.5]}
15... h6 {[%clk 0:02:28.8]} 16. Bh4 {[%clk 0:01:48.1]} 16... Bg4 {[%clk
0:02:27.1]} 17. Qd3 {[%clk 0:01:43.8]} 17... Rfe8 {[%clk 0:02:23.8]} 18. Nd2
{[%clk 0:01:40.9]} 18... Rd7 {[%clk 0:01:51.9]} 19. Nf1 {[%clk 0:01:38.6]} 19...
Nh7 {[%clk 0:01:48.2]} 20. Ne3 {[%clk 0:01:34.6]} 20... Qh5 {[%clk 0:01:47.1]}
21. Bg2 {[%clk 0:01:08.9]} 21... g5 {[%clk 0:01:42]} 22. h3 {[%clk 0:01:08.9]}
22... Be6 {[%clk 0:01:38.6]} 23. d5 {[%clk 0:00:57]} 23... Ne7 {[%clk 0:01:34]}
24. dxe6 {[%clk 0:00:52.5]} 24... fxe6 {[%clk 0:01:34.9]} 25. g4 {[%clk
0:00:50.8]} 25... Qxh4 {[%clk 0:01:33.8]} 26. Nf1 {[%clk 0:00:50.2]} 26... Ng6
{[%clk 0:01:31.5]} 27. Nh2 {[%clk 0:00:40.9]} 27... Nf4 {[%clk 0:01:24.2]} 28.
Qe3 {[%clk 0:00:40.7]} 28... Rf7 {[%clk 0:01:18.7]} 29. Bf1 {[%clk 0:00:17.7]}
29... Ref8 {[%clk 0:01:16.2]} 30. Rb2 {[%clk 0:00:11.5]} 30... h5 {[%clk
0:01:14]} 31. Nf3 {[%clk 0:00:09.9]} 31... Nxh3+ {[%clk 0:01:13.5]} 32. Bxh3
{[%clk 0:00:10.1]} 32... Qxh3 {[%clk 0:01:12.6]} 33. Nh2 {[%clk 0:00:07.7]}
33... hxg4 {[%clk 0:01:10.2]} 34. Qxh3 {[%clk 0:00:03.5]} 34... gxh3 {[%clk
0:01:11.1]} 35. Ng4 {[%clk 0:00:03.7]} 35... Kg7 {[%clk 0:01:10.8]} 36. Kh2
{[%clk 0:00:04]} 36... Nf6 {[%clk 0:01:06.2]} 37. Kxh3 {[%clk 0:00:03.5]} 37...
Nxg4 {[%clk 0:01:05.9]} 38. Kxg4 {[%clk 0:00:04.4]} 38... Rf4+ {[%clk
0:01:04.1]} 39. Kxg5 {[%clk 0:00:03.3]} 39... Rh8 {[%clk 0:01:04.3]} 40. Rg1
{[%clk 0:00:02.5]} 40... Rfh4 {[%clk 0:01:04.1]} 41. f4 {[%clk 0:00:01.9]} 41...
R8h5# {[%clk 0:01:05]} 0-1

[Event "Early-Titled-Tuesday-Blitz-January-23-2024"]
[Site "Chess.com"]
[Date "2024.01.23"]
[Round "8"]
[White "1mbl4"]
[Black "KevinGeorgeMicheal"]
[Result "1-0"]
[WhiteElo "2580"]
[BlackElo "2359"]
[TimeControl "180+1"]
[EndTime "9:27:19 PST"]
[Termination "1mbl4 won on time"]

1. e4 {[%clk 0:03:00.9]} 1... e5 {[%clk 0:02:53.6]} 2. Nf3 {[%clk 0:02:59.6]}
2... Nc6 {[%clk 0:02:52.1]} 3. Nc3 {[%clk 0:02:58.5]} 3... Nf6 {[%clk
0:02:51.8]} 4. g3 {[%clk 0:02:57.6]} 4... Bc5 {[%clk 0:02:48.1]} 5. Bg2 {[%clk
0:02:57]} 5... d6 {[%clk 0:02:45.8]} 6. O-O {[%clk 0:02:55.7]} 6... a6 {[%clk
0:02:44.9]} 7. d3 {[%clk 0:02:54.4]} 7... h6 {[%clk 0:02:42.5]} 8. Be3 {[%clk
0:02:53.5]} 8... Ba7 {[%clk 0:02:38.3]} 9. h3 {[%clk 0:02:52.5]} 9... O-O {[%clk
0:02:35.7]} 10. d4 {[%clk 0:02:50.1]} 10... exd4 {[%clk 0:02:32.7]} 11. Nxd4
{[%clk 0:02:49.1]} 11... Bd7 {[%clk 0:02:28.1]} 12. Qd2 {[%clk 0:02:45.2]} 12...
Re8 {[%clk 0:02:22.9]} 13. Rad1 {[%clk 0:02:42.5]} 13... Nxd4 {[%clk 0:02:16.3]}
14. Bxd4 {[%clk 0:02:42]} 14... Bc6 {[%clk 0:02:16.1]} 15. Rfe1 {[%clk 0:02:41]}
15... Bxd4 {[%clk 0:02:15.1]} 16. Qxd4 {[%clk 0:02:40.6]} 16... Qe7 {[%clk
0:02:15]} 17. f4 {[%clk 0:02:38.1]} 17... Rad8 {[%clk 0:02:14.5]} 18. a3 {[%clk
0:02:30.7]} 18... b5 {[%clk 0:01:58]} 19. Kh2 {[%clk 0:02:27.4]} 19... Ba8
{[%clk 0:01:06.7]} 20. Qa7 {[%clk 0:02:23.3]} 20... c5 {[%clk 0:01:03.4]} 21.
Qxe7 {[%clk 0:02:21.4]} 21... Rxe7 {[%clk 0:01:00.8]} 22. e5 {[%clk 0:02:20.8]}
22... Bxg2 {[%clk 0:00:58.5]} 23. Kxg2 {[%clk 0:02:18.1]} 23... Ne8 {[%clk
0:00:56.2]} 24. Nd5 {[%clk 0:01:46.9]} 24... Rb7 {[%clk 0:00:37]} 25. f5 {[%clk
0:01:39.4]} 25... b4 {[%clk 0:00:10.5]} 26. a4 {[%clk 0:01:35.4]} 26... a5
{[%clk 0:00:07.5]} 27. e6 {[%clk 0:01:32.7]} 27... fxe6 {[%clk 0:00:06.6]} 28.
fxe6 {[%clk 0:01:32.7]} 28... Nf6 {[%clk 0:00:06.4]} 29. Nf4 {[%clk 0:01:11.2]}
29... d5 {[%clk 0:00:05.8]} 30. Re5 {[%clk 0:01:10.5]} 30... d4 {[%clk
0:00:02.8]} 31. Rxc5 {[%clk 0:01:08.4]} 31... b3 {[%clk 0:00:02.3]} 32. c3
{[%clk 0:01:06.6]} 32... Ne4 {[%clk 0:00:00.8]} 33. Rxa5 {[%clk 0:01:03.3]} 1-0

[Event "Early-Titled-Tuesday-Blitz-January-23-2024"]
[Site "Chess.com"]
[Date "2024.01.23"]
[Round "8"]
[White "hurricane7791"]
[Black "Durarbayli"]
[Result "1-0"]
[WhiteElo "2715"]
[BlackElo "2865"]
[TimeControl "180+1"]
[EndTime "9:27:20 PST"]
[Termination "hurricane7791 won on time"]

1. d4 {[%clk 0:03:00.9]} 1... d5 {[%clk 0:02:55.7]} 2. c4 {[%clk 0:03:01.1]}
2... e6 {[%clk 0:02:55.4]} 3. Nc3 {[%clk 0:02:59.6]} 3... Nf6 {[%clk 0:02:54.4]}
4. Nf3 {[%clk 0:02:59]} 4... c6 {[%clk 0:02:54.4]} 5. e3 {[%clk 0:02:58.6]} 5...
Nbd7 {[%clk 0:02:54.5]} 6. Qc2 {[%clk 0:02:59]} 6... Bd6 {[%clk 0:02:54.6]} 7.
Bd3 {[%clk 0:02:59.6]} 7... O-O {[%clk 0:02:54.7]} 8. O-O {[%clk 0:02:59.7]}
8... dxc4 {[%clk 0:02:50.2]} 9. Bxc4 {[%clk 0:03:00.6]} 9... b5 {[%clk
0:02:50.6]} 10. Be2 {[%clk 0:03:00.7]} 10... Bb7 {[%clk 0:02:48.2]} 11. e4
{[%clk 0:03:00.8]} 11... e5 {[%clk 0:02:48.5]} 12. dxe5 {[%clk 0:03:01.7]} 12...
Nxe5 {[%clk 0:02:49]} 13. Nd4 {[%clk 0:03:02.6]} 13... Neg4 {[%clk 0:02:40]} 14.
g3 {[%clk 0:03:02.3]} 14... Bc5 {[%clk 0:02:39.1]} 15. Nf5 {[%clk 0:03:01.9]}
15... Qb6 {[%clk 0:02:36.9]} 16. Bxg4 {[%clk 0:02:57.6]} 16... Nxg4 {[%clk
0:02:36.8]} 17. Bf4 {[%clk 0:02:58.3]} 17... Rfe8 {[%clk 0:02:30]} 18. Rac1
{[%clk 0:02:54.5]} 18... g6 {[%clk 0:02:10.8]} 19. h3 {[%clk 0:02:46.2]} 19...
Nxf2 {[%clk 0:02:09.8]} 20. Nh6+ {[%clk 0:02:37.9]} 20... Kg7 {[%clk 0:02:09.7]}
21. Rxf2 {[%clk 0:02:38.6]} 21... Bxf2+ {[%clk 0:02:09.3]} 22. Qxf2 {[%clk
0:02:39.5]} 22... Qxf2+ {[%clk 0:01:52]} 23. Kxf2 {[%clk 0:02:38.6]} 23... a6
{[%clk 0:01:33.1]} 24. Ng4 {[%clk 0:02:32.6]} 24... h5 {[%clk 0:01:30.6]} 25.
Ne3 {[%clk 0:02:31]} 25... Rad8 {[%clk 0:01:26.4]} 26. Rc2 {[%clk 0:02:25.8]}
26... c5 {[%clk 0:01:25.9]} 27. e5 {[%clk 0:02:13.4]} 27... Rd3 {[%clk 0:01:11]}
28. h4 {[%clk 0:02:11.8]} 28... c4 {[%clk 0:01:06.3]} 29. Ne2 {[%clk 0:02:04]}
29... Be4 {[%clk 0:01:05.3]} 30. Rc1 {[%clk 0:01:56.5]} 30... f6 {[%clk
0:00:48.6]} 31. exf6+ {[%clk 0:01:52.3]} 31... Kxf6 {[%clk 0:00:49.5]} 32. b3
{[%clk 0:01:51.3]} 32... cxb3 {[%clk 0:00:46.3]} 33. axb3 {[%clk 0:01:51.1]}
33... Rxb3 {[%clk 0:00:43.4]} 34. Rc7 {[%clk 0:01:47.9]} 34... Rb2 {[%clk
0:00:38.8]} 35. Ke1 {[%clk 0:01:45.2]} 35... Bh1 {[%clk 0:00:14.3]} 36. Nd4
{[%clk 0:01:35.9]} 36... Rb4 {[%clk 0:00:08.1]} 37. Nc2 {[%clk 0:01:33.4]} 37...
Rc4 {[%clk 0:00:07.3]} 38. Bg5+ {[%clk 0:01:17.5]} 38... Ke6 {[%clk 0:00:04.8]}
39. Nxc4 {[%clk 0:01:17.5]} 39... bxc4 {[%clk 0:00:05.1]} 40. Kd2 {[%clk
0:01:16.2]} 40... Kd5 {[%clk 0:00:01.9]} 41. Ne3+ {[%clk 0:01:16.2]} 41... Ke4
{[%clk 0:00:02.6]} 42. Rxc4+ {[%clk 0:01:12.1]} 42... Kf3 {[%clk 0:00:03.1]} 43.
Bf4 {[%clk 0:01:12.6]} 43... g5 {[%clk 0:00:02.5]} 44. hxg5 {[%clk 0:01:11.7]}
44... h4 {[%clk 0:00:03.4]} 45. gxh4 {[%clk 0:01:10.6]} 1-0

[Event "Early-Titled-Tuesday-Blitz-January-23-2024"]
[Site "Chess.com"]
[Date "2024.01.23"]
[Round "8"]
[White "Sargsyan_Shant"]
[Black "AlexPapasimakopoulos"]
[Result "1/2-1/2"]
[WhiteElo "2904"]
[BlackElo "2739"]
[TimeControl "180+1"]
[EndTime "9:27:21 PST"]
[Termination "Game drawn by repetition"]

1. c4 {[%clk 0:02:59.9]} 1... e6 {[%clk 0:02:56.9]} 2. Nc3 {[%clk 0:02:58.9]}
2... d5 {[%clk 0:02:57.6]} 3. d4 {[%clk 0:02:59.4]} 3... a6 {[%clk 0:02:58]} 4.
cxd5 {[%clk 0:02:58.6]} 4... exd5 {[%clk 0:02:58.9]} 5. Nf3 {[%clk 0:02:59.1]}
5... c6 {[%clk 0:02:59.5]} 6. Bf4 {[%clk 0:02:58.1]} 6... Bd6 {[%clk 0:02:59.9]}
7. e3 {[%clk 0:02:58.3]} 7... Bxf4 {[%clk 0:02:59.3]} 8. exf4 {[%clk 0:02:59.2]}
8... Bg4 {[%clk 0:02:59.4]} 9. Be2 {[%clk 0:02:54.4]} 9... Bxf3 {[%clk
0:02:58.9]} 10. Bxf3 {[%clk 0:02:55.3]} 10... Nf6 {[%clk 0:02:55.7]} 11. O-O
{[%clk 0:02:55.8]} 11... O-O {[%clk 0:02:56.2]} 12. Qb3 {[%clk 0:02:52.1]} 12...
Ra7 {[%clk 0:02:40.4]} 13. Rfe1 {[%clk 0:02:52.1]} 13... Nbd7 {[%clk 0:02:40.7]}
14. a4 {[%clk 0:02:51.4]} 14... a5 {[%clk 0:02:39.5]} 15. g3 {[%clk 0:02:51.1]}
15... Qb6 {[%clk 0:02:39.3]} 16. Qxb6 {[%clk 0:02:48.6]} 16... Nxb6 {[%clk
0:02:40.2]} 17. Re7 {[%clk 0:02:48.7]} 17... Nc8 {[%clk 0:02:38.9]} 18. Rc7
{[%clk 0:02:40.8]} 18... Nd6 {[%clk 0:02:36.1]} 19. Re1 {[%clk 0:02:35]} 19...
Raa8 {[%clk 0:02:35.3]} 20. g4 {[%clk 0:02:27.7]} 20... Rfe8 {[%clk 0:02:34.4]}
21. Re5 {[%clk 0:02:24.5]} 21... Rec8 {[%clk 0:02:30.5]} 22. Rce7 {[%clk
0:02:16.2]} 22... Kf8 {[%clk 0:02:30.6]} 23. g5 {[%clk 0:02:13]} 23... Ng8
{[%clk 0:02:30.9]} 24. Rd7 {[%clk 0:02:09.6]} 24... Rd8 {[%clk 0:02:31.2]} 25.
Rc7 {[%clk 0:02:03.1]} 25... Rac8 {[%clk 0:02:26.8]} 26. Rxc8 {[%clk 0:02:02.2]}
26... Rxc8 {[%clk 0:02:26.9]} 27. Bg4 {[%clk 0:01:58.6]} 27... Rd8 {[%clk
0:02:25.9]} 28. h4 {[%clk 0:01:56.7]} 28... f6 {[%clk 0:02:26.1]} 29. Re2 {[%clk
0:01:55.6]} 29... Re8 {[%clk 0:02:24.3]} 30. Rxe8+ {[%clk 0:01:51.6]} 30... Kxe8
{[%clk 0:02:25.2]} 31. b3 {[%clk 0:01:52.1]} 31... Kf7 {[%clk 0:02:19.4]} 32.
Kg2 {[%clk 0:01:48.8]} 32... f5 {[%clk 0:02:17.6]} 33. Bh5+ {[%clk 0:01:47.6]}
33... g6 {[%clk 0:02:16]} 34. Bd1 {[%clk 0:01:47.9]} 34... Ne4 {[%clk
0:02:04.3]} 35. Ne2 {[%clk 0:01:47.9]} 35... Ne7 {[%clk 0:02:00.8]} 36. Nc1
{[%clk 0:01:48.1]} 36... Nc3 {[%clk 0:01:56.4]} 37. Bc2 {[%clk 0:01:45.6]} 37...
Nc8 {[%clk 0:01:47.8]} 38. f3 {[%clk 0:01:44.7]} 38... Ke6 {[%clk 0:01:37.5]}
39. Kf2 {[%clk 0:01:44.9]} 39... b5 {[%clk 0:01:36.8]} 40. Nd3 {[%clk
0:01:42.4]} 40... bxa4 {[%clk 0:01:33.6]} 41. bxa4 {[%clk 0:01:41.9]} 41... Kd6
{[%clk 0:01:31.9]} 42. Bb3 {[%clk 0:01:35.5]} 42... Nb6 {[%clk 0:01:29.2]} 43.
Nc5 {[%clk 0:01:34.9]} 43... Kc7 {[%clk 0:01:23.8]} 44. Ke1 {[%clk 0:01:31.4]}
44... Nd7 {[%clk 0:01:19.6]} 45. Nxd7 {[%clk 0:01:17.9]} 45... Kxd7 {[%clk
0:01:19.6]} 46. Kd2 {[%clk 0:01:18.6]} 46... Nb1+ {[%clk 0:01:14.3]} 47. Kc2
{[%clk 0:01:12.7]} 47... Na3+ {[%clk 0:01:14.3]} 48. Kb2 {[%clk 0:01:13.2]}
48... Nc4+ {[%clk 0:01:14.4]} 49. Bxc4 {[%clk 0:01:13.6]} 49... dxc4 {[%clk
0:01:15.3]} 50. Kc3 {[%clk 0:01:14.4]} 50... Ke6 {[%clk 0:01:12.3]} 51. Kxc4
{[%clk 0:01:13.6]} 51... Kd6 {[%clk 0:01:12.6]} 52. Kc3 {[%clk 0:00:43.7]} 52...
Kd5 {[%clk 0:01:11.6]} 53. Kd3 {[%clk 0:00:43.1]} 53... c5 {[%clk 0:01:11.9]}
54. dxc5 {[%clk 0:00:43]} 54... Kxc5 {[%clk 0:01:12.8]} 55. Kc3 {[%clk
0:00:43.9]} 55... Kd5 {[%clk 0:01:13.4]} 56. Kd3 {[%clk 0:00:42.2]} 56... Kc5
{[%clk 0:01:13.8]} 57. Kc3 {[%clk 0:00:42.7]} 57... Kd5 {[%clk 0:01:14.4]} 58.
Kd3 {[%clk 0:00:43.3]} 58... Kc5 {[%clk 0:01:15]} 1/2-1/2

[Event "Early-Titled-Tuesday-Blitz-January-23-2024"]
[Site "Chess.com"]
[Date "2024.01.23"]
[Round "8"]
[White "Sofia_Blokhin"]
[Black "kibromNNN"]
[Result "1-0"]
[WhiteElo "2260"]
[BlackElo "1646"]
[TimeControl "180+1"]
[EndTime "9:27:22 PST"]
[Termination "Sofia_Blokhin won by checkmate"]

1. d4 {[%clk 0:03:00.9]} 1... Nf6 {[%clk 0:02:58.3]} 2. c4 {[%clk 0:02:56.7]}
2... e6 {[%clk 0:02:57.2]} 3. Nc3 {[%clk 0:02:55.1]} 3... d5 {[%clk 0:02:57.2]}
4. Nf3 {[%clk 0:02:53.4]} 4... dxc4 {[%clk 0:02:56.5]} 5. e3 {[%clk 0:02:49.8]}
5... a6 {[%clk 0:02:54.9]} 6. a4 {[%clk 0:02:48.6]} 6... c5 {[%clk 0:02:51.3]}
7. Bxc4 {[%clk 0:02:47.3]} 7... Nc6 {[%clk 0:02:49]} 8. O-O {[%clk 0:02:44.4]}
8... Qc7 {[%clk 0:02:47.9]} 9. Ba2 {[%clk 0:02:40.5]} 9... Nb4 {[%clk 0:02:46]}
10. Bb1 {[%clk 0:02:39.3]} 10... b6 {[%clk 0:02:44.3]} 11. Ne5 {[%clk
0:02:26.7]} 11... Bb7 {[%clk 0:02:42.3]} 12. f4 {[%clk 0:02:16.7]} 12... Rd8
{[%clk 0:02:37.8]} 13. Ne2 {[%clk 0:01:41.9]} 13... Be7 {[%clk 0:02:27.3]} 14.
Bd2 {[%clk 0:01:38.3]} 14... a5 {[%clk 0:02:23.3]} 15. Bc3 {[%clk 0:01:37]}
15... O-O {[%clk 0:02:17.4]} 16. Qe1 {[%clk 0:01:35.6]} 16... Ne4 {[%clk
0:02:02.4]} 17. Ng3 {[%clk 0:01:21.7]} 17... Nxc3 {[%clk 0:01:59.1]} 18. bxc3
{[%clk 0:01:19.9]} 18... Nd5 {[%clk 0:01:53.3]} 19. f5 {[%clk 0:01:00.8]} 19...
Bf6 {[%clk 0:01:47.2]} 20. e4 {[%clk 0:00:51.2]} 20... Ne7 {[%clk 0:01:33.3]}
21. Ng4 {[%clk 0:00:50.3]} 21... Bh4 {[%clk 0:01:29.9]} 22. f6 {[%clk
0:00:44.3]} 22... Ng6 {[%clk 0:01:18.4]} 23. fxg7 {[%clk 0:00:43.7]} 23... Rfe8
{[%clk 0:01:16.4]} 24. Qe3 {[%clk 0:00:40.7]} 24... cxd4 {[%clk 0:01:08.9]} 25.
cxd4 {[%clk 0:00:39.4]} 25... Kxg7 {[%clk 0:00:50.2]} 26. Qh6+ {[%clk
0:00:37.2]} 26... Kh8 {[%clk 0:00:46.3]} 27. Nh5 {[%clk 0:00:28.9]} 27... Rg8
{[%clk 0:00:39.5]} 28. Ngf6 {[%clk 0:00:19]} 28... Rg7 {[%clk 0:00:29.6]} 29.
Qxg7# {[%clk 0:00:17]} 1-0

[Event "Early-Titled-Tuesday-Blitz-January-23-2024"]
[Site "Chess.com"]
[Date "2024.01.23"]
[Round "8"]
[White "wonderfultime"]
[Black "platy3"]
[Result "1-0"]
[WhiteElo "3041"]
[BlackElo "2866"]
[TimeControl "180+1"]
[EndTime "9:27:27 PST"]
[Termination "wonderfultime won on time"]

1. d4 {[%clk 0:02:55.3]} 1... Nf6 {[%clk 0:03:00]} 2. c4 {[%clk 0:02:54.1]} 2...
e6 {[%clk 0:03:00.2]} 3. Nf3 {[%clk 0:02:53.6]} 3... d5 {[%clk 0:03:00.5]} 4.
Nc3 {[%clk 0:02:53.2]} 4... dxc4 {[%clk 0:03:00.9]} 5. e4 {[%clk 0:02:49.9]}
5... b5 {[%clk 0:03:00.9]} 6. e5 {[%clk 0:02:50.4]} 6... Nd5 {[%clk 0:03:01.1]}
7. Nxb5 {[%clk 0:02:50.4]} 7... Nb6 {[%clk 0:03:01.8]} 8. Be2 {[%clk 0:02:49.1]}
8... Nc6 {[%clk 0:03:02.1]} 9. a3 {[%clk 0:02:48.1]} 9... Bb7 {[%clk 0:03:00.6]}
10. Be3 {[%clk 0:02:46.4]} 10... Be7 {[%clk 0:03:00.2]} 11. Qc2 {[%clk
0:02:46.3]} 11... Qd7 {[%clk 0:02:59.8]} 12. Nc3 {[%clk 0:02:41.2]} 12... Na5
{[%clk 0:02:59.5]} 13. h4 {[%clk 0:02:40]} 13... f5 {[%clk 0:02:58.8]} 14. exf6
{[%clk 0:02:34.9]} 14... gxf6 {[%clk 0:02:59.7]} 15. Nd2 {[%clk 0:02:11.8]}
15... O-O-O {[%clk 0:02:56.8]} 16. Bf3 {[%clk 0:02:09.6]} 16... f5 {[%clk
0:02:49.1]} 17. Bxb7+ {[%clk 0:02:04.6]} 17... Kxb7 {[%clk 0:02:50]} 18. Nf3
{[%clk 0:02:01.5]} 18... Bf6 {[%clk 0:02:48.8]} 19. O-O-O {[%clk 0:02:00.9]}
19... Qc6 {[%clk 0:02:45.7]} 20. Kb1 {[%clk 0:01:52.7]} 20... Nb3 {[%clk
0:02:31.9]} 21. Bg5 {[%clk 0:01:52.4]} 21... Rhf8 {[%clk 0:02:07.8]} 22. Bxf6
{[%clk 0:01:40.6]} 22... Rxf6 {[%clk 0:02:08.7]} 23. Rhe1 {[%clk 0:01:41]} 23...
Rff8 {[%clk 0:01:40.3]} 24. Ne5 {[%clk 0:01:19]} 24... Qxg2 {[%clk 0:01:34.5]}
25. Nxc4 {[%clk 0:01:19.4]} 25... Nxd4 {[%clk 0:01:28]} 26. Na5+ {[%clk
0:01:16.1]} 26... Kc8 {[%clk 0:01:16.7]} 27. Rxd4 {[%clk 0:01:08.3]} 27... Rxd4
{[%clk 0:01:16.1]} 28. Nb5 {[%clk 0:01:09.2]} 28... Rd7 {[%clk 0:01:09.9]} 29.
Nxa7+ {[%clk 0:01:00.9]} 29... Kb8 {[%clk 0:01:09.4]} 30. N7c6+ {[%clk
0:00:59.7]} 30... Kc8 {[%clk 0:01:05.9]} 31. Qc5 {[%clk 0:00:55.9]} 31... Rd6
{[%clk 0:00:54.4]} 32. Na7+ {[%clk 0:00:42.8]} 32... Kd7 {[%clk 0:00:09.4]} 33.
Nb5 {[%clk 0:00:43.7]} 1-0